fUST/lending_fUST_20250221
["ID","MTS","AMOUNT","RATE_DAILY","PERIOD"]
[353815990,1740076241131,-500.0,0.00013698,2]
[353815991,1740076241141,-500.0,0.00013698,2]
[353815992,1740076241152,-500.0,0.00013698,2]
[353815993,1740076241162,-500.0,0.00013698,2]
[353815994,1740076241171,-1651.3,0.00013698,2]
[353815995,1740076241182,-500.0,0.00013698,2]
[353815996,1740076241193,-500.0,0.00013698,2]
[353815997,1740076241203,-500.0,0.00013698,2]
[353815998,1740076241213,-500.0,0.00013698,2]
[353815999,1740076241223,-1126.07,0.00013698,2]
[353816000,1740076241233,-635.52,0.00013698,2]
[353816001,1740076241243,-500.0,0.00013698,2]
[353816002,1740076241253,-500.0,0.00013698,2]
[353816003,1740076241263,-500.0,0.00013698,2]
[353816004,1740076241272,-1346.93,0.00013698,2]
[353816005,1740076241282,-500.0,0.00013698,2]
[353816006,1740076241291,-500.0,0.00013698,2]
[353816007,1740076241300,-500.0,0.00013698,2]
[353816008,1740076241310,-500.0,0.00013698,2]
[353816009,1740076241319,-500.0,0.00013698,2]
[353816010,1740076241329,-1388.89,0.00013698,2]
[353816011,1740076241340,-500.0,0.00013698,2]
[353816012,1740076241350,-47036.24,0.00013698,2]
[353816013,1740076241359,-19791.69,0.00013698,2]
[353816014,1740076241368,-500.0,0.00013698,2]
[353816015,1740076241378,-500.0,0.00013698,2]
[353816016,1740076241387,-3512.59,0.00013698,2]
[353816017,1740076241398,-500.0,0.00013698,2]
[353816018,1740076241408,-500.0,0.00013698,2]
[353816019,1740076241418,-2717.43,0.00013698,2]
[353816020,1740076241428,-500.0,0.00013698,2]
[353816021,1740076241438,-167.66675015,0.00013698,2]
[353816022,1740076241448,-7818.5,0.00013698,2]
[353816023,1740076241457,-500.0,0.00013698,2]
[353816024,1740076241468,-636.51,0.00013698,2]
[353816025,1740076241477,-1361.67,0.00013698,2]
[353816026,1740076241486,-500.0,0.00013698,2]
[353816027,1740076241496,-1466.88,0.00013698,2]
[353816028,1740076241505,-500.0,0.00013698,2]
[353816029,1740076241515,-502.18607029,0.00013698,2]
[353816030,1740076241524,-500.0,0.00013698,2]
[353816031,1740076241533,-1989.48,0.00013698,2]
[353816032,1740076241542,-1989.48,0.00013698,2]
[353816033,1740076241551,-1989.48,0.00013698,2]
[353816034,1740076241561,-1989.48,0.00013698,2]
[353816035,1740076241571,-1989.48,0.00013698,2]
[353816036,1740076241580,-1989.48,0.00013698,2]
[353816037,1740076241589,-1989.48,0.00013698,2]
[353816038,1740076241599,-1989.48,0.00013698,2]
[353816039,1740076241608,-500.0,0.00013698,2]
[353816040,1740076241618,-1989.48,0.00013698,2]
[353816041,1740076241627,-500.0,0.00013698,2]
[353816042,1740076241637,-1989.48,0.00013698,2]
[353816043,1740076241650,-500.0,0.00013698,2]
[353816044,1740076241660,-1989.48,0.00013698,2]
[353816045,1740076241669,-1989.48,0.00013698,2]
[353816046,1740076241678,-1989.48,0.00013698,2]
[353816047,1740076241689,-1989.48,0.00013698,2]
[353816048,1740076241699,-501.8535876,0.00013698,2]
[353816049,1740076241709,-1989.48,0.00013698,2]
[353816050,1740076241718,-500.0,0.00013698,2]
[353816051,1740076241728,-500.0,0.00013698,2]
[353816052,1740076241738,-500.0,0.00013698,2]
[353816053,1740076241748,-500.0,0.00013698,2]
[353816054,1740076241758,-500.0,0.00013698,2]
[353816055,1740076241767,-500.0,0.00013698,2]
[353816056,1740076241777,-500.0,0.00013698,2]
[353816057,1740076241786,-1051.97,0.00013698,2]
[353816058,1740076241898,-500.0,0.00013698,2]
[353816059,1740076241909,-500.0,0.00013698,2]
[353816060,1740076241918,-4641.17,0.00013698,2]
[353816061,1740076241928,-4362.45,0.00013698,2]
[353816062,1740076241937,-502.39894354,0.00013698,2]
[353816063,1740076241947,-500.0,0.00013698,2]
[353816064,1740076241956,-502.31171081,0.00013698,2]
[353816065,1740076241965,-2680.77,0.00013698,2]
[353816066,1740076241975,-500.0,0.00013698,2]
[353816067,1740076241984,-500.0,0.00013698,2]
[353816068,1740076241994,-511.61979312,0.00013698,2]
[353816069,1740076242006,-876.1,0.00013698,2]
[353816070,1740076242016,-500.0,0.00013698,2]
[353816071,1740076242026,-500.0,0.00013698,2]
[353816072,1740076242035,-648.02146928,0.00013698,2]
[353816073,1740076242044,-500.0,0.00013698,2]
[353816074,1740076242055,-500.0,0.00013698,2]
[353816075,1740076242064,-567.17,0.00013698,2]
[353816076,1740076242073,-500.0,0.00013698,2]
[353816077,1740076242082,-2034.24,0.00013698,2]
[353816078,1740076242091,-612.16,0.00013698,2]
[353816079,1740076242100,-535.83,0.00013698,2]
[353816080,1740076242109,-500.0,0.00013698,2]
[353816081,1740076242119,-527.16,0.00013698,2]
[353816082,1740076242129,-500.0,0.00013698,2]
[353816083,1740076242138,-500.75775592,0.00013698,2]
[353816084,1740076242148,-500.0,0.00013698,2]
[353816085,1740076242158,-1517.61,0.00013698,2]
[353816086,1740076242168,-506.67,0.00013698,2]
[353816087,1740076242177,-500.0,0.00013698,2]
[353816088,1740076242187,-2602.51,0.00013698,2]
[353816089,1740076242197,-1916.95,0.00013698,2]
[353816090,1740076242208,-500.0,0.00013698,2]
[353816091,1740076242218,-478.3062698,0.00013698,2]
[353816092,1740076242228,-500.0,0.00013698,2]
[353816093,1740076242237,-500.0,0.00013698,2]
[353816094,1740076242248,-500.0,0.00013698,2]
[353816095,1740076242258,-211.09352973,0.00013698,2]
[353816096,1740076242268,-500.0,0.00013698,2]
[353816097,1740076242278,-500.90078429,0.00013698,2]
[353816098,1740076242287,-511.13,0.00013698,2]
[353816099,1740076242298,-500.0,0.00013698,2]
[353816100,1740076242309,-500.0,0.00013698,2]
[353816101,1740076242318,-500.0,0.00013698,2]
[353816102,1740076242328,-500.0,0.00013698,2]
[353816103,1740076242337,-629.92,0.00013698,2]
[353816104,1740076242347,-500.0,0.00013698,2]
[353816105,1740076242357,-1365.1,0.00013698,2]
[353816106,1740076242366,-1365.1,0.00013698,2]
[353816107,1740076242377,-1365.1,0.00013698,2]
[353816108,1740076242387,-1365.1,0.00013698,2]
[353816109,1740076242398,-1365.1,0.00013698,2]
[353816110,1740076242408,-1365.1,0.00013698,2]
[353816111,1740076242418,-500.0,0.00013698,2]
[353816112,1740076242428,-1365.1,0.00013698,2]
[353816113,1740076242437,-1365.1,0.00013698,2]
[353816114,1740076242446,-1365.1,0.00013698,2]
[353816115,1740076242456,-1365.1,0.00013698,2]
[353816116,1740076242465,-1365.1,0.00013698,2]
[353816117,1740076242475,-1365.1,0.00013698,2]
[353816118,1740076242489,-1365.1,0.00013698,2]
[353816119,1740076242499,-5866.62,0.00013698,2]
[353816120,1740076242508,-1365.1,0.00013698,2]
[353816121,1740076242518,-1365.1,0.00013698,2]
[353816122,1740076242528,-1365.1,0.00013698,2]
[353816123,1740076242537,-2113.59,0.00013698,2]
[353816124,1740076242547,-1365.1,0.00013698,2]
[353816125,1740076242556,-1365.1,0.00013698,2]
[353816126,1740076242566,-1365.1,0.00013698,2]
[353816127,1740076242576,-502.67069263,0.00013698,2]
[353816128,1740076242585,-500.0,0.00013698,2]
[353816129,1740076242595,-500.0,0.00013698,2]
[353816130,1740076242604,-500.0,0.00013698,2]
[353816131,1740076242614,-500.0,0.00013698,2]
[353816132,1740076242623,-500.0,0.00013698,2]
[353816133,1740076242633,-500.0,0.00013698,2]
[353816134,1740076242645,-873.01,0.00013698,2]
[353816135,1740076242667,-459.8096676,0.00013698,2]
[353816136,1740076242678,-500.0,0.00013698,2]
[353816137,1740076242689,-2177.13,0.00013698,2]
[353816138,1740076242699,-500.0,0.00013698,2]
[353816139,1740076242709,-500.0,0.00013698,2]
[353816141,1740076242721,-500.0,0.00013698,2]
[353816143,1740076242730,-500.0,0.00013698,2]
[353816144,1740076242740,-662.43,0.00013698,2]
[353816146,1740076242750,-500.0,0.00013698,2]
[353816147,1740076242761,-1620.44,0.00013698,2]
[353816148,1740076242771,-500.0,0.00013698,2]
[353816149,1740076242781,-500.0,0.00013698,2]
[353816150,1740076242791,-500.0,0.00013698,2]
[353816151,1740076242802,-500.0,0.00013698,2]
[353816152,1740076242813,-502.71694892,0.00013698,2]
[353816153,1740076242822,-500.0,0.00013698,2]
[353816154,1740076242832,-500.0,0.00013698,2]
[353816156,1740076242842,-512.98125807,0.00013698,2]
[353816158,1740076242852,-240.55044473,0.00013699,2]
[353816160,1740076242862,-500.0,0.00013699,2]
[353816162,1740076242873,-203.69961552,0.00013699,2]
[353816164,1740076242883,-500.0,0.00013699,2]
[353816166,1740076242893,-548.57542623,0.00013699,2]
[353816169,1740076242906,-500.0,0.00013699,2]
[353816172,1740076242916,-1989.48,0.00013699,2]
[353816174,1740076242926,-1989.48,0.00013699,2]
[353816176,1740076242935,-1989.48,0.00013699,2]
[353816178,1740076242946,-1989.48,0.00013699,2]
[353816180,1740076242956,-1989.48,0.00013699,2]
[353816185,1740076242966,-1989.48,0.00013699,2]
[353816190,1740076242976,-1989.48,0.00013699,2]
[353816195,1740076242985,-1989.48,0.00013699,2]
[353816198,1740076242996,-1989.66564753,0.00013699,2]
[353816200,1740076243006,-1365.1,0.00013699,2]
[353816203,1740076243018,-1365.1,0.00013699,2]
[353816204,1740076243028,-1365.1,0.00013699,2]
[353816205,1740076243037,-1365.1,0.00013699,2]
[353816206,1740076243047,-1365.20942486,0.00013699,2]
[353816207,1740076243058,-102403.22553686,0.000137,2]
[353816208,1740076243067,-538.0,0.00013701,2]
[353816209,1740076243077,-1969.0,0.00013701,2]
[353816210,1740076243087,-2287.0,0.00013701,2]
[353816212,1740076243097,-396.0,0.00013701,2]
[353816213,1740076243107,-7438.69753278,0.00013753,2]
[353816214,1740076243116,-1688.6709389,0.00013763,2]
[353816215,1740076243126,-335.76578364,0.00013763,2]
[353816216,1740076243136,-335.76578364,0.00013763,2]
[353816217,1740076243145,-335.76578364,0.00013763,2]
[353816219,1740076243159,-335.76578364,0.00013763,2]
[353816220,1740076243168,-335.76578364,0.00013763,2]
[353816221,1740076243178,-335.76578364,0.00013763,2]
[353816222,1740076243188,-335.76578364,0.00013763,2]
[353816223,1740076243197,-335.76578364,0.00013763,2]
[353816224,1740076243207,-335.76578364,0.00013763,2]
[353816225,1740076243217,-335.76578364,0.00013763,2]
[353816226,1740076243226,-335.76578364,0.00013763,2]
[353816227,1740076243236,-335.76578364,0.00013763,2]
[353816228,1740076243246,-335.76578364,0.00013763,2]
[353816229,1740076243256,-335.76578364,0.00013763,2]
[353816230,1740076243266,-335.76578364,0.00013763,2]
[353816231,1740076243276,-335.76578364,0.00013763,2]
[353816232,1740076243286,-335.76578364,0.00013763,2]
[353816233,1740076243297,-335.76578364,0.00013763,2]
[353816234,1740076243306,-335.76578364,0.00013763,2]
[353816235,1740076243316,-335.76,0.00013763,2]
[353816236,1740076243326,-500.0,0.0001378,2]
[353816237,1740076243335,-500.0,0.0001378,2]
[353816238,1740076243345,-500.0,0.0001378,2]
[353816239,1740076243355,-500.0,0.0001378,2]
[353816240,1740076243364,-500.0,0.0001378,2]
[353816241,1740076243374,-500.0,0.0001378,2]
[353816242,1740076243385,-500.0,0.0001378,2]
[353816243,1740076243394,-500.0,0.0001378,2]
[353816244,1740076243408,-163.778,0.0001378,2]
[353816245,1740076243417,-500.0,0.0001378,2]
[353816246,1740076243427,-500.0,0.0001378,2]
[353816247,1740076243436,-500.0,0.0001378,2]
[353816248,1740076243446,-500.0,0.0001378,2]
[353816249,1740076243455,-500.0,0.0001378,2]
[353816250,1740076243466,-500.0,0.0001378,2]
[353816251,1740076243475,-449.04670681,0.0001378,2]
[353816252,1740076243484,-500.0,0.0001378,2]
[353816253,1740076243494,-500.0,0.0001378,2]
[353816254,1740076243507,-500.0,0.0001378,2]
[353816255,1740076243516,-500.0,0.0001378,2]
[353816256,1740076243526,-252.43782814,0.0001378,2]
[353816257,1740076243536,-500.0,0.0001378,2]
[353816258,1740076243546,-500.0,0.0001378,2]
[353816259,1740076243555,-500.0,0.0001378,2]
[353816260,1740076243565,-500.0,0.0001378,2]
[353816261,1740076243576,-788.73,0.0001378,2]
[353816262,1740076243586,-500.0,0.0001378,2]
[353816263,1740076243596,-500.0,0.0001378,2]
[353816264,1740076243607,-500.0,0.0001378,2]
[353816265,1740076243617,-500.0,0.0001378,2]
[353816266,1740076243627,-500.0,0.0001378,2]
[353816267,1740076243638,-500.0,0.0001378,2]
[353816268,1740076243653,-500.0,0.0001378,2]
[353816269,1740076243663,-500.0,0.0001378,2]
[353816270,1740076243674,-162.40579956,0.0001378,2]
[353816271,1740076243685,-500.0,0.0001378,2]
[353816272,1740076243695,-500.0,0.0001378,2]
[353816273,1740076243705,-982.3,0.0001378,2]
[353816274,1740076243716,-500.0,0.0001378,2]
[353816275,1740076243726,-500.0,0.0001378,2]
[353816276,1740076243736,-1729.35,0.0001378,2]
[353816277,1740076243746,-500.0,0.0001378,2]
[353816278,1740076243755,-501.78935841,0.0001378,2]
[353816279,1740076243766,-630.66,0.0001378,2]
[353816280,1740076243776,-500.0,0.0001378,2]
[353816281,1740076243786,-500.0,0.0001378,2]
[353816282,1740076243796,-500.0,0.0001378,2]
[353816283,1740076243806,-500.0,0.0001378,2]
[353816284,1740076243816,-500.0,0.0001378,2]
[353816285,1740076243826,-500.0,0.0001378,2]
[353816286,1740076243836,-500.0,0.0001378,2]
[353816287,1740076243846,-500.0,0.0001378,2]
[353816288,1740076243856,-500.0,0.0001378,2]
[353816289,1740076243865,-1243.02,0.0001378,2]
[353816290,1740076243875,-779.92,0.0001378,2]
[353816291,1740076243885,-500.0,0.0001378,2]
[353816292,1740076243895,-500.0,0.0001378,2]
[353816293,1740076243908,-500.0,0.0001378,2]
[353816294,1740076243918,-748.47,0.0001378,2]
[353816295,1740076243929,-500.0,0.0001378,2]
[353816296,1740076243939,-718.84,0.0001378,2]
[353816297,1740076243948,-500.0,0.0001378,2]
[353816298,1740076243958,-500.0,0.0001378,2]
[353816299,1740076243967,-500.0,0.0001378,2]
[353816300,1740076243977,-500.0,0.0001378,2]
[353816301,1740076243987,-500.0,0.0001378,2]
[353816302,1740076243997,-551.17226777,0.0001378,2]
[353816303,1740076244006,-500.0,0.0001378,2]
[353816304,1740076244015,-500.0,0.0001378,2]
[353816305,1740076244025,-500.0,0.0001378,2]
[353816306,1740076244034,-500.0,0.0001378,2]
[353816307,1740076244044,-500.0,0.0001378,2]
[353816308,1740076244055,-729.54,0.0001378,2]
[353816309,1740076244064,-500.0,0.0001378,2]
[353816310,1740076244074,-500.0,0.0001378,2]
[353816311,1740076244084,-500.0,0.0001378,2]
[353816312,1740076244094,-500.0,0.0001378,2]
[353816313,1740076244104,-500.0,0.0001378,2]
[353816314,1740076244114,-500.0,0.0001378,2]
[353816315,1740076244124,-500.0,0.0001378,2]
[353816316,1740076244133,-809.4,0.0001378,2]
[353816317,1740076244143,-500.0,0.0001378,2]
[353816318,1740076244155,-238.80331441,0.0001378,2]
[353816319,1740076244165,-688.33,0.0001378,2]
[353816320,1740076244175,-702.25,0.0001378,2]
[353816321,1740076244185,-500.0,0.0001378,2]
[353816322,1740076244195,-500.0,0.0001378,2]
[353816323,1740076244205,-500.0,0.0001378,2]
[353816324,1740076244215,-500.0,0.0001378,2]
[353816325,1740076244225,-500.0,0.0001378,2]
[353816326,1740076244235,-500.0,0.0001378,2]
[353816327,1740076244244,-500.0,0.0001378,2]
[353816328,1740076244256,-500.0,0.0001378,2]
[353816329,1740076244266,-500.0,0.0001378,2]
[353816330,1740076244277,-500.0,0.0001378,2]
[353816331,1740076244287,-500.0,0.0001378,2]
[353816332,1740076244297,-500.0,0.0001378,2]
[353816333,1740076244307,-1210.8,0.0001378,2]
[353816334,1740076244317,-500.0,0.0001378,2]
[353816335,1740076244327,-597.8,0.0001378,2]
[353816336,1740076244456,-691.73,0.0001378,2]
[353816337,1740076244467,-549.02,0.0001378,2]
[353816338,1740076244477,-500.0,0.0001378,2]
[353816339,1740076244487,-500.0,0.0001378,2]
[353816340,1740076244496,-500.0,0.0001378,2]
[353816341,1740076244505,-500.0,0.0001378,2]
[353816342,1740076244515,-500.0,0.0001378,2]
[353816343,1740076244525,-500.0,0.0001378,2]
[353816344,1740076244535,-500.0,0.0001378,2]
[353816345,1740076244545,-500.0,0.0001378,2]
[353816346,1740076244555,-500.0,0.0001378,2]
[353816347,1740076244565,-501.26941097,0.0001378,2]
[353816348,1740076244574,-971.06,0.0001378,2]
[353816349,1740076244585,-500.0,0.0001378,2]
[353816350,1740076244595,-500.0,0.0001378,2]
[353816351,1740076244605,-500.0,0.0001378,2]
[353816352,1740076244616,-1489.95,0.0001378,2]
[353816353,1740076244625,-500.0,0.0001378,2]
[353816354,1740076244634,-500.0,0.0001378,2]
[353816355,1740076244645,-500.0,0.0001378,2]
[353816356,1740076244657,-500.0,0.0001378,2]
[353816357,1740076244667,-500.0,0.0001378,2]
[353816358,1740076244678,-401.35251584,0.0001378,2]
[353816359,1740076244690,-500.0,0.0001378,2]
[353816360,1740076244699,-500.0,0.0001378,2]
[353816361,1740076244709,-500.0,0.0001378,2]
[353816362,1740076244719,-500.0,0.0001378,2]
[353816363,1740076244730,-793.63,0.0001378,2]
[353816364,1740076244739,-500.0,0.0001378,2]
[353816365,1740076244749,-506.19572257,0.0001378,2]
[353816366,1740076244758,-500.0,0.0001378,2]
[353816367,1740076244767,-500.0,0.0001378,2]
[353816368,1740076244777,-500.0,0.0001378,2]
[353816369,1740076244787,-500.0,0.0001378,2]
[353816370,1740076244797,-807.41,0.0001378,2]
[353816371,1740076244807,-500.0,0.0001378,2]
[353816372,1740076244820,-500.0,0.0001378,2]
[353816373,1740076244829,-500.0,0.0001378,2]
[353816374,1740076244839,-565.76,0.0001378,2]
[353816375,1740076244848,-500.0,0.0001378,2]
[353816376,1740076244858,-500.0,0.0001378,2]
[353816377,1740076244868,-500.0,0.0001378,2]
[353816378,1740076244878,-500.0,0.0001378,2]
[353816379,1740076244888,-500.0,0.0001378,2]
[353816380,1740076244900,-500.0,0.0001378,2]
[353816381,1740076244910,-625.95,0.0001378,2]
[353816382,1740076244920,-500.0,0.0001378,2]
[353816383,1740076244930,-500.0,0.0001378,2]
[353816384,1740076244940,-500.0,0.0001378,2]
[353816385,1740076244950,-500.0,0.0001378,2]
[353816386,1740076244959,-500.0,0.0001378,2]
[353816387,1740076244969,-504.49751818,0.0001378,2]
[353816388,1740076244979,-10409.39,0.0001378,2]
[353816389,1740076244989,-865.67,0.0001378,2]
[353816390,1740076244999,-500.0,0.0001378,2]
[353816391,1740076245009,-605.73,0.0001378,2]
[353816392,1740076245019,-500.0,0.0001378,2]
[353816393,1740076245029,-17685.15,0.0001378,2]
[353816394,1740076245040,-500.0,0.0001378,2]
[353816395,1740076245050,-500.0,0.0001378,2]
[353816396,1740076245060,-500.0,0.0001378,2]
[353816397,1740076245070,-500.0,0.0001378,2]
[353816398,1740076245080,-500.0,0.0001378,2]
[353816399,1740076245090,-3965.85,0.0001378,2]
[353816400,1740076245101,-651.6,0.0001378,2]
[353816401,1740076245111,-2324.79,0.0001378,2]
[353816402,1740076245121,-500.0,0.0001378,2]
[353816403,1740076245130,-3893.67,0.0001378,2]
[353816404,1740076245139,-500.0,0.0001378,2]
[353816405,1740076245150,-729.57,0.0001378,2]
[353816406,1740076245161,-500.0,0.0001378,2]
[353816407,1740076245170,-907.2,0.0001378,2]
[353816408,1740076245180,-500.0,0.0001378,2]
[353816409,1740076245190,-825.36,0.0001378,2]
[353816410,1740076245200,-2151.45,0.0001378,2]
[353816411,1740076245209,-500.0,0.0001378,2]
[353816412,1740076245219,-500.0,0.0001378,2]
[353816413,1740076245228,-500.0,0.0001378,2]
[353816414,1740076245238,-1651.3,0.0001378,2]
[353816415,1740076245248,-500.0,0.0001378,2]
[353816416,1740076245258,-500.0,0.0001378,2]
[353816417,1740076245268,-500.0,0.0001378,2]
[353816418,1740076245278,-1126.07,0.0001378,2]
[353816419,1740076245288,-500.0,0.0001378,2]
[353816420,1740076245298,-635.52,0.0001378,2]
[353816421,1740076245308,-501.58816451,0.0001378,2]
[353816422,1740076245318,-500.0,0.0001378,2]
[353816423,1740076245328,-1346.93,0.0001378,2]
[353816424,1740076245338,-500.0,0.0001378,2]
[353816425,1740076245348,-500.0,0.0001378,2]
[353816426,1740076245358,-500.0,0.0001378,2]
[353816427,1740076245367,-500.0,0.0001378,2]
[353816428,1740076245377,-500.0,0.0001378,2]
[353816429,1740076245387,-1388.89,0.0001378,2]
[353816430,1740076245396,-500.0,0.0001378,2]
[353816431,1740076245407,-47036.24,0.0001378,2]
[353816432,1740076245417,-19791.69,0.0001378,2]
[353816433,1740076245427,-500.0,0.0001378,2]
[353816434,1740076245437,-500.0,0.0001378,2]
[353816435,1740076245447,-3512.59,0.0001378,2]
[353816436,1740076245457,-500.0,0.0001378,2]
[353816437,1740076245466,-500.0,0.0001378,2]
[353816438,1740076245476,-2717.43,0.0001378,2]
[353816439,1740076245487,-500.0,0.0001378,2]
[353816440,1740076245496,-7818.5,0.0001378,2]
[353816441,1740076245505,-500.0,0.0001378,2]
[353816442,1740076245514,-636.51,0.0001378,2]
[353816443,1740076245523,-1361.67,0.0001378,2]
[353816444,1740076245533,-500.0,0.0001378,2]
[353816445,1740076245543,-1466.88,0.0001378,2]
[353816446,1740076245553,-502.91379177,0.0001378,2]
[353816447,1740076245564,-177.55751488,0.0001378,2]
[353816448,1740076245574,-500.0,0.0001378,2]
[353816449,1740076245585,-500.0,0.0001378,2]
[353816450,1740076245595,-500.0,0.0001378,2]
[353816451,1740076245604,-500.0,0.0001378,2]
[353816452,1740076245614,-500.0,0.0001378,2]
[353816453,1740076245624,-555.38702957,0.0001378,2]
[353816454,1740076245634,-501.44003449,0.0001378,2]
[353816455,1740076245644,-500.0,0.0001378,2]
[353816456,1740076245659,-1051.97,0.0001378,2]
[353816457,1740076245669,-4641.17,0.0001378,2]
[353816458,1740076245679,-4362.45,0.0001378,2]
[353816459,1740076245689,-500.0,0.0001378,2]
[353816460,1740076245699,-2680.77,0.0001378,2]
[353816461,1740076245710,-500.0,0.0001378,2]
[353816462,1740076245720,-500.0,0.0001378,2]
[353816463,1740076245731,-876.1,0.0001378,2]
[353816465,1740076245742,-500.0,0.0001378,2]
[353816467,1740076245752,-500.0,0.0001378,2]
[353816468,1740076245762,-229.22114234,0.0001378,2]
[353816469,1740076245771,-567.17,0.0001378,2]
[353816470,1740076245780,-522.27245316,0.0001378,2]
[353816471,1740076245791,-2034.24,0.0001378,2]
[353816472,1740076245802,-612.16,0.0001378,2]
[353816473,1740076245815,-535.83,0.0001378,2]
[353816474,1740076245826,-257.49429732,0.0001378,2]
[353816475,1740076245836,-527.16,0.0001378,2]
[353816476,1740076245846,-500.0,0.0001378,2]
[353816477,1740076245856,-500.0,0.0001378,2]
[353816478,1740076245865,-1517.61,0.0001378,2]
[353816479,1740076245875,-506.67,0.0001378,2]
[353816480,1740076245885,-500.0,0.0001378,2]
[353816481,1740076245904,-2602.51,0.0001378,2]
[353816482,1740076245921,-1916.95,0.0001378,2]
[353816483,1740076245931,-500.0,0.0001378,2]
[353816484,1740076245941,-500.0,0.0001378,2]
[353816485,1740076245951,-500.0,0.0001378,2]
[353816486,1740076245961,-500.0,0.0001378,2]
[353816487,1740076245971,-272.65215659,0.0001378,2]
[353816488,1740076245980,-511.13,0.0001378,2]
[353816489,1740076245990,-500.0,0.0001378,2]
[353816490,1740076246000,-500.0,0.0001378,2]
[353816491,1740076246010,-500.0,0.0001378,2]
[353816492,1740076246019,-629.92,0.0001378,2]
[353816493,1740076246029,-500.0,0.0001378,2]
[353816494,1740076246039,-500.0,0.0001378,2]
[353816495,1740076246050,-5866.62,0.0001378,2]
[353816496,1740076246060,-2113.59,0.0001378,2]
[353816497,1740076246070,-500.0,0.0001378,2]
[353816498,1740076246079,-500.0,0.0001378,2]
[353816499,1740076246089,-500.0,0.0001378,2]
[353816500,1740076246099,-500.0,0.0001378,2]
[353816501,1740076246108,-426.16131336,0.0001378,2]
[353816502,1740076246118,-500.0,0.0001378,2]
[353816503,1740076246128,-873.01,0.0001378,2]
[353816504,1740076246138,-2177.13,0.0001378,2]
[353816505,1740076246147,-500.0,0.0001378,2]
[353816506,1740076246158,-500.0,0.0001378,2]
[353816508,1740076246168,-500.0,0.0001378,2]
[353816509,1740076246178,-500.0,0.0001378,2]
[353816510,1740076246199,-662.43,0.0001378,2]
[353816511,1740076246209,-1620.44,0.0001378,2]
[353816512,1740076246220,-500.0,0.0001378,2]
[353816514,1740076246230,-500.0,0.0001378,2]
[353816516,1740076246240,-500.0,0.0001378,2]
[353816518,1740076246252,-500.0,0.0001378,2]
[353816520,1740076246262,-500.0,0.0001378,2]
[353816521,1740076246272,-600.0,0.00013782,2]
[353816522,1740076246283,-500.0,0.00013863,2]
[353816523,1740076246293,-500.0,0.00013863,2]
[353816524,1740076246303,-500.0,0.00013863,2]
[353816525,1740076246314,-500.0,0.00013863,2]
[353816526,1740076246324,-500.0,0.00013863,2]
[353816527,1740076246334,-500.0,0.00013863,2]
[353816528,1740076246344,-500.0,0.00013863,2]
[353816529,1740076246354,-500.0,0.00013863,2]
[353816530,1740076246364,-500.0,0.00013863,2]
[353816531,1740076246374,-500.0,0.00013863,2]
[353816532,1740076246383,-500.0,0.00013863,2]